[Event "Titled Tuesday Blitz November 14 Early 2023"]
[White "De Silva, L M S T"]
[Black "Szyszylo, Rafal"]
[WhiteFideId "9953698"]
[BlackFideId "1109626"]
[WhiteElo "2740"]
[BlackElo "2404"]
[Result "1-0"]
[Round "1"]
[TimeControl "180+1"]
[Date "2023.11.14"]
[WhiteClock "0:01:01"]
[BlackClock "0:00:00"]
[Board "120"]

1. b3 {[%clk 0:02:55]}  d6 {[%clk 0:02:59]} 2. Bb2 {[%clk 0:02:54]}  Nf6 {[%clk 0:02:57]} 3. g3 {[%clk 0:02:54]}  g6 {[%clk 0:02:57]} 4. Bg2 {[%clk 0:02:54]}  Bg7 {[%clk 0:02:57]} 5. Nf3 {[%clk 0:02:54]}  O-O {[%clk 0:02:57]} 6. d4 {[%clk 0:02:54]}  Nc6 {[%clk 0:02:56]} 7. O-O {[%clk 0:02:54]}  e5 {[%clk 0:02:56]} 8. dxe5 {[%clk 0:02:55]}  Ng4 {[%clk 0:02:56]} 9. c4 {[%clk 0:02:55]}  dxe5 {[%clk 0:02:56]} 10. h3 {[%clk 0:02:47]}  Nh6 {[%clk 0:02:55]} 11. e4 {[%clk 0:02:42]}  f6 {[%clk 0:02:52]} 12. Nc3 {[%clk 0:02:39]}  Nf7 {[%clk 0:02:48]} 13. Nd5 {[%clk 0:02:36]}  Be6 {[%clk 0:02:48]} 14. Qc2 {[%clk 0:02:35]}  Rc8 {[%clk 0:02:31]} 15. Rfd1 {[%clk 0:02:33]}  Qe8 {[%clk 0:02:31]} 16. Nh2 {[%clk 0:02:27]}  Nd6 {[%clk 0:02:24]} 17. Nxc7 {[%clk 0:02:23]}  Rxc7 {[%clk 0:02:22]} 18. Rxd6 {[%clk 0:02:24]}  Qe7 {[%clk 0:01:46]} 19. Rdd1 {[%clk 0:02:22]}  b5 {[%clk 0:01:25]} 20. cxb5 {[%clk 0:01:49]}  Nd4 {[%clk 0:01:24]} 21. Qd3 {[%clk 0:01:48]}  Qd7 {[%clk 0:01:21]} 22. Nf3 {[%clk 0:01:42]}  Nxb5 {[%clk 0:01:07]} 23. Qe3 {[%clk 0:01:35]}  Qc8 {[%clk 0:01:03]} 24. Rac1 {[%clk 0:01:22]}  Rxc1 {[%clk 0:00:09]} 25. Rxc1 {[%clk 0:01:23]}  Qb7 {[%clk 0:00:09]} 26. Ne1 {[%clk 0:01:12]}  Rc8 {[%clk 0:00:06]} 27. Nd3 {[%clk 0:01:11]}  Rxc1+ {[%clk 0:00:05]} 28. Qxc1 {[%clk 0:01:12]}  Nd4 {[%clk 0:00:04]} 29. Kh2 {[%clk 0:01:05]}  h5 {[%clk 0:00:03]} 30. Nc5 {[%clk 0:01:05]}  Qc6 {[%clk 0:00:02]} 31. Nxe6 {[%clk 0:01:05]}  Qxe6 {[%clk 0:00:02]} 32. Bf1 {[%clk 0:01:02]}  Kh7 {[%clk 0:00:01]} 33. Qc4 {[%clk 0:01:02]}  Qd6 {[%clk 0:00:00]} 34. Kg2 {[%clk 0:01:01]} 1-0


[Site "https://www.chess.com"]

[Event "Titled Tuesday Blitz November 14 Early 2023"]
[White "Petkov, Momchil"]
[Black "Xie, Bryan"]
[WhiteFideId "2921642"]
[BlackFideId "30941296"]
[WhiteElo "2738"]
[BlackElo "2402"]
[Result "1/2-1/2"]
[Round "1"]
[TimeControl "180+1"]
[Date "2023.11.14"]
[WhiteClock "0:00:07"]
[BlackClock "0:00:11"]
[Board "122"]

1. d4 {[%clk 0:02:59]}  d5 {[%clk 0:02:56]} 2. Nf3 {[%clk 0:02:59]}  Nf6 {[%clk 0:02:56]} 3. Bf4 {[%clk 0:03:00]}  Bf5 {[%clk 0:02:56]} 4. e3 {[%clk 0:02:59]}  c6 {[%clk 0:02:54]} 5. Nbd2 {[%clk 0:02:59]}  Nbd7 {[%clk 0:02:54]} 6. Ne5 {[%clk 0:02:58]}  h6 {[%clk 0:02:53]} 7. g4 {[%clk 0:02:49]}  Bh7 {[%clk 0:02:52]} 8. h4 {[%clk 0:02:49]}  Nxe5 {[%clk 0:02:40]} 9. dxe5 {[%clk 0:02:33]}  Ne4 {[%clk 0:02:37]} 10. Bd3 {[%clk 0:02:33]}  Nxd2 {[%clk 0:02:26]} 11. Qxd2 {[%clk 0:02:34]}  Bxd3 {[%clk 0:02:25]} 12. cxd3 {[%clk 0:02:33]}  e6 {[%clk 0:02:26]} 13. O-O-O {[%clk 0:02:26]}  Be7 {[%clk 0:02:22]} 14. Bg3 {[%clk 0:02:21]}  c5 {[%clk 0:02:16]} 15. Kb1 {[%clk 0:02:19]}  Rc8 {[%clk 0:02:11]} 16. f4 {[%clk 0:02:15]}  c4 {[%clk 0:02:00]} 17. Rc1 {[%clk 0:02:07]}  O-O {[%clk 0:01:54]} 18. dxc4 {[%clk 0:00:44]}  dxc4 {[%clk 0:01:55]} 19. Qxd8 {[%clk 0:00:38]}  Rfxd8 {[%clk 0:01:56]} 20. Rhd1 {[%clk 0:00:38]}  b5 {[%clk 0:01:52]} 21. h5 {[%clk 0:00:35]}  Bc5 {[%clk 0:01:45]} 22. Bf2 {[%clk 0:00:33]}  Bb6 {[%clk 0:01:35]} 23. Kc2 {[%clk 0:00:32]}  f6 {[%clk 0:01:01]} 24. exf6 {[%clk 0:00:31]}  gxf6 {[%clk 0:01:01]} 25. Rxd8+ {[%clk 0:00:23]}  Rxd8 {[%clk 0:01:01]} 26. b3 {[%clk 0:00:21]}  Rc8 {[%clk 0:00:58]} 27. Rd1 {[%clk 0:00:21]}  Rc7 {[%clk 0:00:53]} 28. Rd8+ {[%clk 0:00:16]}  Kf7 {[%clk 0:00:53]} 29. Rh8 {[%clk 0:00:16]}  Kg7 {[%clk 0:00:53]} 30. Re8 {[%clk 0:00:16]}  Rc6 {[%clk 0:00:35]} 31. Re7+ {[%clk 0:00:16]}  Kf8 {[%clk 0:00:36]} 32. Rh7 {[%clk 0:00:16]}  e5 {[%clk 0:00:34]} 33. f5 {[%clk 0:00:13]}  cxb3+ {[%clk 0:00:31]} 34. Kxb3 {[%clk 0:00:13]}  Rc4 {[%clk 0:00:31]} 35. Rxh6 {[%clk 0:00:13]}  Rxg4 {[%clk 0:00:32]} 36. Rxf6+ {[%clk 0:00:13]}  Kg7 {[%clk 0:00:30]} 37. Rg6+ {[%clk 0:00:13]}  Rxg6 {[%clk 0:00:30]} 38. fxg6 {[%clk 0:00:14]}  Kh6 {[%clk 0:00:29]} 39. Bg3 {[%clk 0:00:14]}  e4 {[%clk 0:00:24]} 40. Bf4+ {[%clk 0:00:13]}  Kg7 {[%clk 0:00:24]} 41. Be5+ {[%clk 0:00:13]}  Kh6 {[%clk 0:00:24]} 42. Bf4+ {[%clk 0:00:09]}  Kg7 {[%clk 0:00:25]} 43. Kb4 {[%clk 0:00:09]}  a6 {[%clk 0:00:25]} 44. a4 {[%clk 0:00:08]}  bxa4 {[%clk 0:00:22]} 45. Kxa4 {[%clk 0:00:09]}  Bd8 {[%clk 0:00:20]} 46. Be5+ {[%clk 0:00:09]}  Kh6 {[%clk 0:00:20]} 47. Bd4 {[%clk 0:00:08]}  Bc7 {[%clk 0:00:12]} 48. Kb4 {[%clk 0:00:09]}  a5+ {[%clk 0:00:10]} 49. Kb5 {[%clk 0:00:09]}  Bd8 {[%clk 0:00:11]} 50. Bc3 {[%clk 0:00:09]}  Bg5 {[%clk 0:00:11]} 51. Bd4 {[%clk 0:00:08]}  Bd8 {[%clk 0:00:11]} 52. Ka4 {[%clk 0:00:09]}  Bc7 {[%clk 0:00:10]} 53. Kb5 {[%clk 0:00:07]}  Bd8 {[%clk 0:00:11]} 1/2-1/2


[Site "https://www.chess.com"]

[Event "Titled Tuesday Blitz November 14 Early 2023"]
[White "Jackalhead_Anubis"]
[Black "Krivonosov, Oleg"]
[BlackFideId "11600349"]
[WhiteElo "2393"]
[BlackElo "2733"]
[Result "1-0"]
[Round "1"]
[TimeControl "180+1"]
[Date "2023.11.14"]
[WhiteClock "0:01:55"]
[BlackClock "0:01:46"]
[Board "125"]

1. e3 {[%clk 0:03:00]}  d5 {[%clk 0:02:58]} 2. Nf3 {[%clk 0:02:58]}  Nf6 {[%clk 0:02:57]} 3. b3 {[%clk 0:02:58]}  g6 {[%clk 0:02:57]} 4. Bb2 {[%clk 0:02:58]}  Bg7 {[%clk 0:02:57]} 5. d4 {[%clk 0:02:56]}  O-O {[%clk 0:02:57]} 6. Nbd2 {[%clk 0:02:56]}  c5 {[%clk 0:02:55]} 7. dxc5 {[%clk 0:02:52]}  Qa5 {[%clk 0:02:54]} 8. Bd4 {[%clk 0:02:46]}  Nfd7 {[%clk 0:02:42]} 9. c3 {[%clk 0:02:41]}  Qc7 {[%clk 0:02:37]} 10. Bxg7 {[%clk 0:02:39]}  Kxg7 {[%clk 0:02:38]} 11. b4 {[%clk 0:02:39]}  b6 {[%clk 0:02:35]} 12. Nb3 {[%clk 0:02:27]}  Nf6 {[%clk 0:02:30]} 13. Rc1 {[%clk 0:02:19]}  Nbd7 {[%clk 0:02:27]} 14. cxb6 {[%clk 0:02:18]}  axb6 {[%clk 0:02:25]} 15. Qc2 {[%clk 0:02:13]}  Ne5 {[%clk 0:02:22]} 16. Nxe5 {[%clk 0:02:10]}  Qxe5 {[%clk 0:02:23]} 17. Be2 {[%clk 0:02:10]}  Bf5 {[%clk 0:02:22]} 18. Qb2 {[%clk 0:02:09]}  Rfc8 {[%clk 0:02:17]} 19. Nd4 {[%clk 0:02:09]}  Bd7 {[%clk 0:02:12]} 20. O-O {[%clk 0:02:08]}  Ne4 {[%clk 0:02:11]} 21. Bf3 {[%clk 0:02:05]}  e6 {[%clk 0:01:59]} 22. c4 {[%clk 0:02:00]}  Ng5 {[%clk 0:01:46]} 23. Nxe6+ {[%clk 0:01:55]} 1-0


[Site "https://www.chess.com"]

[Event "Titled Tuesday Blitz November 14 Early 2023"]
[White "Cheer_Down"]
[Black "Csonka, Balazs"]
[BlackFideId "742910"]
[WhiteElo "2389"]
[BlackElo "2726"]
[Result "0-1"]
[Round "1"]
[TimeControl "180+1"]
[Date "2023.11.14"]
[WhiteClock "0:00:00"]
[BlackClock "0:00:04"]
[Board "127"]

1. c4 {[%clk 0:02:59]}  g6 {[%clk 0:02:57]} 2. Nc3 {[%clk 0:02:55]}  Bg7 {[%clk 0:02:56]} 3. d4 {[%clk 0:02:55]}  Nf6 {[%clk 0:02:56]} 4. e4 {[%clk 0:02:54]}  d6 {[%clk 0:02:56]} 5. f3 {[%clk 0:02:54]}  O-O {[%clk 0:02:53]} 6. Nge2 {[%clk 0:02:53]}  a6 {[%clk 0:02:49]} 7. Bg5 {[%clk 0:02:47]}  Nc6 {[%clk 0:02:34]} 8. d5 {[%clk 0:02:45]}  Na5 {[%clk 0:02:22]} 9. Nd4 {[%clk 0:02:44]}  c5 {[%clk 0:02:19]} 10. dxc6 {[%clk 0:02:41]}  Nxc6 {[%clk 0:02:02]} 11. Be2 {[%clk 0:02:29]}  Bd7 {[%clk 0:01:33]} 12. Be3 {[%clk 0:02:28]}  Qa5 {[%clk 0:01:18]} 13. O-O {[%clk 0:02:25]}  Nxd4 {[%clk 0:01:16]} 14. Bxd4 {[%clk 0:02:25]}  b5 {[%clk 0:01:14]} 15. Nd5 {[%clk 0:02:24]}  Nxd5 {[%clk 0:01:09]} 16. cxd5 {[%clk 0:02:24]}  Rfc8 {[%clk 0:01:04]} 17. Bxg7 {[%clk 0:02:22]}  Kxg7 {[%clk 0:01:04]} 18. Qd4+ {[%clk 0:02:23]}  f6 {[%clk 0:01:03]} 19. Rfc1 {[%clk 0:02:19]}  Rxc1+ {[%clk 0:00:39]} 20. Rxc1 {[%clk 0:02:19]}  Rc8 {[%clk 0:00:39]} 21. Rxc8 {[%clk 0:02:18]}  Qe1+ {[%clk 0:00:37]} 22. Bf1 {[%clk 0:02:17]}  Bxc8 {[%clk 0:00:37]} 23. Qc3 {[%clk 0:02:13]}  Qxc3 {[%clk 0:00:37]} 24. bxc3 {[%clk 0:02:14]}  Kf8 {[%clk 0:00:35]} 25. Kf2 {[%clk 0:02:13]}  Ke8 {[%clk 0:00:35]} 26. Ke3 {[%clk 0:02:13]}  Kd8 {[%clk 0:00:36]} 27. a3 {[%clk 0:02:08]}  Kc7 {[%clk 0:00:36]} 28. Bd3 {[%clk 0:02:00]}  Kb6 {[%clk 0:00:36]} 29. f4 {[%clk 0:01:58]}  Kc5 {[%clk 0:00:35]} 30. h4 {[%clk 0:01:55]}  h6 {[%clk 0:00:27]} 31. Be2 {[%clk 0:01:54]}  a5 {[%clk 0:00:15]} 32. g4 {[%clk 0:01:49]}  g5 {[%clk 0:00:15]} 33. hxg5 {[%clk 0:01:47]}  hxg5 {[%clk 0:00:14]} 34. f5 {[%clk 0:01:46]}  Bb7 {[%clk 0:00:10]} 35. Bd3 {[%clk 0:01:46]}  Bc8 {[%clk 0:00:08]} 36. Be2 {[%clk 0:01:46]}  Bd7 {[%clk 0:00:08]} 37. Bd3 {[%clk 0:01:46]}  b4 {[%clk 0:00:08]} 38. cxb4+ {[%clk 0:01:45]}  axb4 {[%clk 0:00:09]} 39. axb4+ {[%clk 0:01:45]}  Kxb4 {[%clk 0:00:10]} 40. Kd4 {[%clk 0:01:43]}  Ba4 {[%clk 0:00:11]} 41. Be2 {[%clk 0:01:42]}  Bb3 {[%clk 0:00:11]} 42. Bf3 {[%clk 0:01:41]}  Bc2 {[%clk 0:00:09]} 43. Be2 {[%clk 0:01:41]}  Kb3 {[%clk 0:00:10]} 44. Bf3 {[%clk 0:01:34]}  Kb2 {[%clk 0:00:10]} 45. Ke3 {[%clk 0:01:21]}  Kc1 {[%clk 0:00:10]} 46. Be2 {[%clk 0:01:20]}  Ba4 {[%clk 0:00:07]} 47. Bf3 {[%clk 0:01:16]}  Bb5 {[%clk 0:00:07]} 48. Bg2 {[%clk 0:01:09]}  Kd1 {[%clk 0:00:07]} 49. Bh3 {[%clk 0:01:06]}  Ke1 {[%clk 0:00:07]} 50. Bg2 {[%clk 0:01:06]}  Ba4 {[%clk 0:00:07]} 51. Bf3 {[%clk 0:01:05]}  Bb3 {[%clk 0:00:06]} 52. Be2 {[%clk 0:01:04]}  Ba2 {[%clk 0:00:05]} 53. Bf3 {[%clk 0:01:04]}  Bc4 {[%clk 0:00:05]} 54. Kd4 {[%clk 0:00:54]}  Be2 {[%clk 0:00:04]} 55. Ke3 {[%clk 0:00:54]}  Bxf3 {[%clk 0:00:03]} 56. Kxf3 {[%clk 0:00:54]}  Kf1 {[%clk 0:00:03]} 57. Ke3 {[%clk 0:00:00]}  Kg2 {[%clk 0:00:04]} 0-1


[Site "https://www.chess.com"]

[Event "Titled Tuesday Blitz November 14 Early 2023"]
[White "Mestnikov, Aisen"]
[Black "Halkias, Stelios"]
[WhiteFideId "34130117"]
[BlackFideId "4201809"]
[WhiteElo "2386"]
[BlackElo "2718"]
[Result "0-1"]
[Round "1"]
[TimeControl "180+1"]
[Date "2023.11.14"]
[WhiteClock "0:00:00"]
[BlackClock "0:00:19"]
[Board "129"]

1. d4 {[%clk 0:02:43]}  d5 {[%clk 0:02:59]} 2. c4 {[%clk 0:02:40]}  e6 {[%clk 0:02:59]} 3. Nf3 {[%clk 0:02:40]}  Nf6 {[%clk 0:02:58]} 4. g3 {[%clk 0:02:41]}  Be7 {[%clk 0:02:58]} 5. Bg2 {[%clk 0:02:41]}  O-O {[%clk 0:02:58]} 6. O-O {[%clk 0:02:41]}  c6 {[%clk 0:02:59]} 7. Nc3 {[%clk 0:02:41]}  Nbd7 {[%clk 0:02:57]} 8. Qd3 {[%clk 0:02:41]}  a5 {[%clk 0:02:57]} 9. Rd1 {[%clk 0:02:39]}  b6 {[%clk 0:02:44]} 10. e4 {[%clk 0:02:35]}  Ba6 {[%clk 0:02:44]} 11. b3 {[%clk 0:02:35]}  Bb4 {[%clk 0:02:09]} 12. Ne5 {[%clk 0:02:17]}  dxc4 {[%clk 0:01:44]} 13. Nxc4 {[%clk 0:02:09]}  b5 {[%clk 0:01:31]} 14. Ne3 {[%clk 0:01:58]}  e5 {[%clk 0:01:30]} 15. a3 {[%clk 0:01:47]}  Be7 {[%clk 0:01:20]} 16. d5 {[%clk 0:01:44]}  b4 {[%clk 0:01:20]} 17. Qc2 {[%clk 0:01:35]}  Qc7 {[%clk 0:00:49]} 18. Nf5 {[%clk 0:01:06]}  Bc5 {[%clk 0:00:42]} 19. d6 {[%clk 0:00:43]}  Qa7 {[%clk 0:00:24]} 20. Na4 {[%clk 0:00:43]}  Bb5 {[%clk 0:00:22]} 21. Nxc5 {[%clk 0:00:40]}  Qxc5 {[%clk 0:00:21]} 22. Qxc5 {[%clk 0:00:40]}  Nxc5 {[%clk 0:00:22]} 23. a4 {[%clk 0:00:17]}  Nxb3 {[%clk 0:00:21]} 24. axb5 {[%clk 0:00:16]}  cxb5 {[%clk 0:00:21]} 25. Rb1 {[%clk 0:00:14]}  a4 {[%clk 0:00:21]} 26. Bd2 {[%clk 0:00:12]}  Nxd2 {[%clk 0:00:21]} 27. Rxd2 {[%clk 0:00:13]}  b3 {[%clk 0:00:21]} 28. Bf1 {[%clk 0:00:11]}  Nxe4 {[%clk 0:00:22]} 29. Rd5 {[%clk 0:00:10]}  Nc3 {[%clk 0:00:21]} 30. Rdd1 {[%clk 0:00:08]}  Nxd1 {[%clk 0:00:21]} 31. Rxd1 {[%clk 0:00:02]}  a3 {[%clk 0:00:21]} 32. Bxb5 {[%clk 0:00:03]}  a2 {[%clk 0:00:21]} 33. d7 {[%clk 0:00:02]}  b2 {[%clk 0:00:20]} 34. Ne7+ {[%clk 0:00:02]}  Kh8 {[%clk 0:00:20]} 35. d8=Q {[%clk 0:00:02]}  Rfxd8 {[%clk 0:00:19]} 36. Ra1 {[%clk 0:00:00]}  bxa1=Q+ {[%clk 0:00:19]} 0-1


[Site "https://www.chess.com"]

[Event "Titled Tuesday Blitz November 14 Early 2023"]
[White "Karthik Rajaa"]
[Black "Dwilewicz, Katarzyna"]
[WhiteFideId "25035215"]
[BlackFideId "1148486"]
[WhiteElo "2718"]
[BlackElo "2385"]
[Result "1-0"]
[Round "1"]
[TimeControl "180+1"]
[Date "2023.11.14"]
[WhiteClock "0:02:09"]
[BlackClock "0:00:56"]
[Board "130"]

1. Nf3 {[%clk 0:02:57]}  e6 {[%clk 0:02:57]} 2. c4 {[%clk 0:02:56]}  c5 {[%clk 0:02:54]} 3. Nc3 {[%clk 0:02:55]}  Nc6 {[%clk 0:02:54]} 4. g3 {[%clk 0:02:52]}  d5 {[%clk 0:02:53]} 5. cxd5 {[%clk 0:02:52]}  exd5 {[%clk 0:02:53]} 6. d4 {[%clk 0:02:53]}  cxd4 {[%clk 0:02:50]} 7. Nxd4 {[%clk 0:02:54]}  Nf6 {[%clk 0:02:50]} 8. Bg2 {[%clk 0:02:54]}  Bc5 {[%clk 0:02:49]} 9. Nb3 {[%clk 0:02:52]}  Bb6 {[%clk 0:02:47]} 10. O-O {[%clk 0:02:49]}  Be6 {[%clk 0:02:45]} 11. Bg5 {[%clk 0:02:46]}  O-O {[%clk 0:02:31]} 12. Na4 {[%clk 0:02:35]}  Bc7 {[%clk 0:02:25]} 13. Nac5 {[%clk 0:02:31]}  b6 {[%clk 0:02:19]} 14. Nxe6 {[%clk 0:02:30]}  fxe6 {[%clk 0:02:19]} 15. Rc1 {[%clk 0:02:31]}  Ne5 {[%clk 0:02:09]} 16. Bh3 {[%clk 0:02:30]}  Re8 {[%clk 0:02:02]} 17. Nd4 {[%clk 0:02:29]}  Kf7 {[%clk 0:01:11]} 18. Bxf6 {[%clk 0:02:17]}  gxf6 {[%clk 0:01:10]} 19. Qc2 {[%clk 0:02:17]}  Rc8 {[%clk 0:01:00]} 20. Qxh7+ {[%clk 0:02:15]}  Kf8 {[%clk 0:01:01]} 21. Nxe6+ {[%clk 0:02:08]}  Rxe6 {[%clk 0:00:56]} 22. Bxe6 {[%clk 0:02:09]} 1-0


[Site "https://www.chess.com"]

[Event "Titled Tuesday Blitz November 14 Early 2023"]
[White "Hoffmann, Asa"]
[Black "DopplerCharlotteDeWitte"]
[WhiteFideId "2001470"]
[WhiteElo "2382"]
[BlackElo "2716"]
[Result "0-1"]
[Round "1"]
[TimeControl "180+1"]
[Date "2023.11.14"]
[WhiteClock "0:01:46"]
[BlackClock "0:01:10"]
[Board "131"]

1. d4 {[%clk 0:02:57]}  Nf6 {[%clk 0:02:58]} 2. Bg5 {[%clk 0:02:55]}  Ne4 {[%clk 0:02:57]} 3. Bf4 {[%clk 0:02:54]}  c5 {[%clk 0:02:58]} 4. f3 {[%clk 0:02:54]}  Nf6 {[%clk 0:02:58]} 5. dxc5 {[%clk 0:02:54]}  b6 {[%clk 0:02:55]} 6. Nc3 {[%clk 0:02:52]}  bxc5 {[%clk 0:02:55]} 7. e4 {[%clk 0:02:52]}  g6 {[%clk 0:02:47]} 8. Qd2 {[%clk 0:02:52]}  Bg7 {[%clk 0:02:45]} 9. O-O-O {[%clk 0:02:51]}  Nc6 {[%clk 0:02:42]} 10. Bc4 {[%clk 0:02:44]}  O-O {[%clk 0:02:37]} 11. Bh6 {[%clk 0:02:44]}  Ne5 {[%clk 0:02:24]} 12. Be2 {[%clk 0:02:41]}  d6 {[%clk 0:02:19]} 13. h4 {[%clk 0:02:41]}  Be6 {[%clk 0:02:07]} 14. g4 {[%clk 0:02:36]}  Rb8 {[%clk 0:02:04]} 15. b3 {[%clk 0:02:35]}  Qa5 {[%clk 0:01:55]} 16. Bxg7 {[%clk 0:02:30]}  Kxg7 {[%clk 0:01:54]} 17. h5 {[%clk 0:02:30]}  c4 {[%clk 0:01:41]} 18. hxg6 {[%clk 0:02:28]}  fxg6 {[%clk 0:01:37]} 19. g5 {[%clk 0:02:20]}  Nh5 {[%clk 0:01:30]} 20. Rxh5 {[%clk 0:02:17]}  gxh5 {[%clk 0:01:30]} 21. f4 {[%clk 0:02:17]}  cxb3 {[%clk 0:01:25]} 22. cxb3 {[%clk 0:02:16]}  Rxf4 {[%clk 0:01:13]} 23. Qxf4 {[%clk 0:02:07]}  Qxc3+ {[%clk 0:01:12]} 24. Kb1 {[%clk 0:01:46]}  Bxb3 {[%clk 0:01:10]} 0-1


[Site "https://www.chess.com"]

[Event "Titled Tuesday Blitz November 14 Early 2023"]
[White "Chinguun, Sumiya"]
[Black "Jamal-Jamal-Jamal"]
[WhiteFideId "4902572"]
[WhiteElo "2709"]
[BlackElo "2376"]
[Result "1-0"]
[Round "1"]
[TimeControl "180+1"]
[Date "2023.11.14"]
[WhiteClock "0:00:56"]
[BlackClock "0:00:00"]
[Board "134"]

1. e4 {[%clk 0:02:55]}  c5 {[%clk 0:02:59]} 2. Nf3 {[%clk 0:02:55]}  e6 {[%clk 0:02:59]} 3. d4 {[%clk 0:02:55]}  cxd4 {[%clk 0:03:00]} 4. Nxd4 {[%clk 0:02:56]}  Nc6 {[%clk 0:03:00]} 5. Nc3 {[%clk 0:02:56]}  Qc7 {[%clk 0:03:00]} 6. Be2 {[%clk 0:02:56]}  Nf6 {[%clk 0:02:59]} 7. O-O {[%clk 0:02:57]}  a6 {[%clk 0:02:59]} 8. Be3 {[%clk 0:02:57]}  Be7 {[%clk 0:02:59]} 9. f4 {[%clk 0:02:56]}  d6 {[%clk 0:02:58]} 10. Kh1 {[%clk 0:02:56]}  O-O {[%clk 0:02:58]} 11. Nxc6 {[%clk 0:02:56]}  bxc6 {[%clk 0:02:54]} 12. Bd3 {[%clk 0:02:55]}  e5 {[%clk 0:02:52]} 13. fxe5 {[%clk 0:02:53]}  dxe5 {[%clk 0:02:52]} 14. Qe2 {[%clk 0:02:50]}  a5 {[%clk 0:02:38]} 15. a4 {[%clk 0:02:49]}  Rb8 {[%clk 0:02:35]} 16. Nd1 {[%clk 0:02:45]}  Be6 {[%clk 0:02:33]} 17. b3 {[%clk 0:02:41]}  h6 {[%clk 0:02:16]} 18. Nb2 {[%clk 0:02:40]}  Bg4 {[%clk 0:02:03]} 19. Qf2 {[%clk 0:02:35]}  Be6 {[%clk 0:02:02]} 20. Qg3 {[%clk 0:02:30]}  Kh8 {[%clk 0:01:53]} 21. Nc4 {[%clk 0:02:29]}  Bxc4 {[%clk 0:01:51]} 22. bxc4 {[%clk 0:02:23]}  c5 {[%clk 0:01:41]} 23. Rf5 {[%clk 0:02:22]}  Nd7 {[%clk 0:01:37]} 24. h3 {[%clk 0:02:19]}  Qd6 {[%clk 0:01:34]} 25. Raf1 {[%clk 0:02:18]}  Kg8 {[%clk 0:01:29]} 26. Be2 {[%clk 0:02:15]}  Qg6 {[%clk 0:01:24]} 27. Qf2 {[%clk 0:02:11]}  Qd6 {[%clk 0:01:23]} 28. Rd1 {[%clk 0:02:09]}  Qc6 {[%clk 0:01:21]} 29. Qg3 {[%clk 0:01:51]}  Kh8 {[%clk 0:01:17]} 30. Bg4 {[%clk 0:01:49]}  Rbd8 {[%clk 0:01:14]} 31. Rd5 {[%clk 0:01:47]}  Qxa4 {[%clk 0:01:12]} 32. Bh5 {[%clk 0:01:44]}  Qxc4 {[%clk 0:00:52]} 33. Bxf7 {[%clk 0:01:39]}  Qxe4 {[%clk 0:00:49]} 34. Bxh6 {[%clk 0:01:16]}  gxh6 {[%clk 0:00:33]} 35. Qg6 {[%clk 0:01:15]}  Qh4 {[%clk 0:00:21]} 36. Rh5 {[%clk 0:01:13]}  Qxh5 {[%clk 0:00:07]} 37. Qxh5 {[%clk 0:01:13]}  Bg5 {[%clk 0:00:06]} 38. h4 {[%clk 0:01:03]}  Nf6 {[%clk 0:00:06]} 39. Rxd8 {[%clk 0:01:02]}  Rxd8 {[%clk 0:00:07]} 40. Qg6 {[%clk 0:00:56]}  Rd1+ {[%clk 0:00:07]} 41. Kh2 {[%clk 0:00:56]}  Bf4+ {[%clk 0:00:07]} 42. g3 {[%clk 0:00:56]}  Rd2+ {[%clk 0:00:00]} 43. Kh3 {[%clk 0:00:56]} 1-0


[Site "https://www.chess.com"]

[Event "Titled Tuesday Blitz November 14 Early 2023"]
[White "Matveeva, Olga"]
[Black "Ilkhomi, Jaloliddin"]
[WhiteFideId "24107018"]
[BlackFideId "14700948"]
[WhiteElo "2374"]
[BlackElo "2706"]
[Result "1/2-1/2"]
[Round "1"]
[TimeControl "180+1"]
[Date "2023.11.14"]
[WhiteClock "0:01:04"]
[BlackClock "0:00:26"]
[Board "135"]

1. d4 {[%clk 0:03:00]}  Nf6 {[%clk 0:02:57]} 2. c4 {[%clk 0:03:01]}  e6 {[%clk 0:02:55]} 3. g3 {[%clk 0:03:01]}  Bb4+ {[%clk 0:02:54]} 4. Bd2 {[%clk 0:03:02]}  Qe7 {[%clk 0:02:53]} 5. Nf3 {[%clk 0:03:01]}  O-O {[%clk 0:02:54]} 6. Bg2 {[%clk 0:03:00]}  b6 {[%clk 0:02:54]} 7. O-O {[%clk 0:02:59]}  Bxd2 {[%clk 0:02:53]} 8. Nbxd2 {[%clk 0:02:59]}  Bb7 {[%clk 0:02:53]} 9. Qc2 {[%clk 0:02:58]}  d5 {[%clk 0:02:53]} 10. cxd5 {[%clk 0:02:56]}  exd5 {[%clk 0:02:54]} 11. Ne5 {[%clk 0:02:51]}  c5 {[%clk 0:02:51]} 12. e3 {[%clk 0:02:46]}  Nbd7 {[%clk 0:02:50]} 13. Nxd7 {[%clk 0:02:39]}  Nxd7 {[%clk 0:02:49]} 14. dxc5 {[%clk 0:02:34]}  bxc5 {[%clk 0:02:50]} 15. Rfd1 {[%clk 0:02:33]}  Rfd8 {[%clk 0:02:49]} 16. Rac1 {[%clk 0:02:32]}  Rac8 {[%clk 0:02:49]} 17. b3 {[%clk 0:02:30]}  Ne5 {[%clk 0:02:47]} 18. Nf3 {[%clk 0:02:27]}  d4 {[%clk 0:02:14]} 19. Nxe5 {[%clk 0:02:22]}  Bxg2 {[%clk 0:02:15]} 20. Kxg2 {[%clk 0:02:22]}  Qxe5 {[%clk 0:02:16]} 21. exd4 {[%clk 0:02:22]}  Rxd4 {[%clk 0:02:07]} 22. Rxd4 {[%clk 0:02:21]}  Qxd4 {[%clk 0:02:08]} 23. Qc4 {[%clk 0:02:20]}  Qd6 {[%clk 0:02:06]} 24. b4 {[%clk 0:02:17]}  Qc6+ {[%clk 0:01:54]} 25. Kg1 {[%clk 0:02:14]}  Qa4 {[%clk 0:01:35]} 26. bxc5 {[%clk 0:02:10]}  Qxc4 {[%clk 0:01:36]} 27. Rxc4 {[%clk 0:02:11]}  f5 {[%clk 0:01:36]} 28. Kg2 {[%clk 0:02:10]}  Kf7 {[%clk 0:01:36]} 29. Kf3 {[%clk 0:02:10]}  Ke6 {[%clk 0:01:37]} 30. Kf4 {[%clk 0:02:08]}  h6 {[%clk 0:01:23]} 31. h4 {[%clk 0:02:07]}  g6 {[%clk 0:01:21]} 32. Rc2 {[%clk 0:01:57]}  Rc6 {[%clk 0:01:18]} 33. f3 {[%clk 0:01:50]}  a5 {[%clk 0:01:11]} 34. g4 {[%clk 0:01:45]}  fxg4 {[%clk 0:01:11]} 35. fxg4 {[%clk 0:01:46]}  Kd5 {[%clk 0:01:12]} 36. h5 {[%clk 0:01:38]}  Rf6+ {[%clk 0:00:49]} 37. Ke3 {[%clk 0:01:29]}  Re6+ {[%clk 0:00:47]} 38. Kd3 {[%clk 0:01:14]}  gxh5 {[%clk 0:00:44]} 39. gxh5 {[%clk 0:01:13]}  Rc6 {[%clk 0:00:44]} 40. Ke3 {[%clk 0:01:09]}  Rxc5 {[%clk 0:00:33]} 41. Rxc5+ {[%clk 0:01:09]}  Kxc5 {[%clk 0:00:34]} 42. Kf4 {[%clk 0:01:07]}  Kb4 {[%clk 0:00:20]} 43. Kf5 {[%clk 0:01:08]}  Ka3 {[%clk 0:00:21]} 44. Kg6 {[%clk 0:01:08]}  Kxa2 {[%clk 0:00:22]} 45. Kxh6 {[%clk 0:01:09]}  Kb1 {[%clk 0:00:22]} 46. Kg6 {[%clk 0:01:05]}  a4 {[%clk 0:00:23]} 47. h6 {[%clk 0:01:06]}  a3 {[%clk 0:00:23]} 48. h7 {[%clk 0:01:07]}  a2 {[%clk 0:00:24]} 49. h8=Q {[%clk 0:01:07]}  a1=Q {[%clk 0:00:25]} 50. Qxa1+ {[%clk 0:01:04]}  Kxa1 {[%clk 0:00:26]} 1/2-1/2


[Site "https://www.chess.com"]